fUST/lending_fUST_20260507
["ID","MTS","AMOUNT","RATE_DAILY","PERIOD"]
[421744251,1778091041000,-151.0,0.00015,2]
[421744218,1778091041000,-500.0,0.00014794,2]
[421744262,1778091041000,-151.0,0.00015,2]
[421744217,1778091041000,-1674.7,0.00014794,2]
[421744181,1778091041000,-500.0,0.0001452,2]
[421744185,1778091041000,-281.04042686,0.000146,2]
[421744193,1778091041000,-578.20924308,0.00014629,2]
[421744191,1778091041000,-478.75725327,0.00014629,2]
[421744197,1778091041000,-1796.79767813,0.00014676,2]
[421744199,1778091041000,-1504.87904734,0.000147,2]
[421744204,1778091041000,-254.1721958,0.00014794,2]
[421744219,1778091041000,-500.0,0.00014794,2]
[421744206,1778091041000,-2287.54976219,0.00014794,2]
[421744211,1778091041000,-1722.34553546,0.00014794,2]
[421744208,1778091041000,-6354.30489496,0.00014794,2]
[421744207,1778091041000,-4066.75513277,0.00014794,2]
[421744209,1778091041000,-9150.19904874,0.00014794,2]
[421744205,1778091041000,-1016.68878319,0.00014794,2]
[421744203,1778091041000,-3668.04512416,0.00014794,2]
[421744202,1778091041000,-917.92921025,0.00014794,2]
[421744220,1778091041000,-500.0,0.000148,7]
[421744216,1778091041000,-7949.73,0.00014794,2]
[421744214,1778091041000,-1563.72187758,0.00014794,2]
[421744227,1778091041000,-1613.0,0.00014902,2]
[421744225,1778091041000,-389.81051883,0.000149,2]
[421744222,1778091041000,-9663.70479695,0.00014823,2]
[421744223,1778091041000,-1000.0,0.00014875,2]
[421744212,1778091041000,-3871.40217732,0.00014794,2]
[421744213,1778091041000,-390.93046939,0.00014794,2]
[421744210,1778091041000,-430.58638386,0.00014794,2]
[421744201,1778091041000,-349.05640779,0.00014768,2]
[421744215,1778091041000,-3514.85585032,0.00014794,2]
[421744306,1778091042000,-442.0,0.0001524,2]
[421744307,1778091042000,-185.0,0.0001524,2]
[421744303,1778091042000,-496.47127164,0.00015177,2]
[421744305,1778091042000,-10093.61614664,0.000152,2]
[421744304,1778091042000,-599.60298507,0.00015177,2]
[421744293,1778091042000,-500.0,0.00015,2]
[421744299,1778091042000,-500.0,0.00015068,2]
[421744295,1778091042000,-404.27735354,0.00015052,2]
[421744292,1778091042000,-152.79326871,0.00015,2]
[421744301,1778091042000,-1548.071394,0.00015068,2]
[421744302,1778091042000,-200.85,0.000151,2]
[421744313,1778091042000,-722.23,0.00015342,2]
[421744326,1778091042000,-644.73923864,0.00015455,2]
[421744311,1778091042000,-2052.50137541,0.00015308,7]
[421744310,1778091042000,-812.37626328,0.00015308,7]
[421744312,1778091042000,-2052.50137541,0.00015308,7]
[421744309,1778091042000,-812.37626328,0.00015308,7]
[421744315,1778091042000,-1674.7,0.00015342,2]
[421744320,1778091042000,-2214.0,0.00015425,2]
[421744322,1778091042000,-168.034645,0.00015438,2]
[421744314,1778091042000,-7949.73,0.00015342,2]
[421744319,1778091042000,-645.0,0.00015425,2]
[421744323,1778091042000,-664.795437,0.00015438,7]
[421744317,1778091042000,-500.0,0.00015377,2]
[421744318,1778091042000,-491.80875169,0.00015392,60]
[421744291,1778091042000,-500.0,0.00015,2]
[421744308,1778091042000,-10093.61614664,0.000153,2]
[421744300,1778091042000,-401.20999445,0.00015068,2]
[421744280,1778091042000,-151.0,0.00015,2]
[421744294,1778091042000,-4009.25649773,0.00015033,2]
[421744275,1778091042000,-151.0,0.00015,2]
[421744273,1778091042000,-151.0,0.00015,2]
[421744274,1778091042000,-151.0,0.00015,2]
[421744266,1778091042000,-151.0,0.00015,2]
[421744265,1778091042000,-151.0,0.00015,2]
[421744267,1778091042000,-151.0,0.00015,2]
[421744268,1778091042000,-151.0,0.00015,2]
[421744269,1778091042000,-151.0,0.00015,2]
[421744270,1778091042000,-151.0,0.00015,2]
[421744271,1778091042000,-151.0,0.00015,2]
[421744272,1778091042000,-151.0,0.00015,2]
[421744276,1778091042000,-151.0,0.00015,2]
[421744277,1778091042000,-151.0,0.00015,2]
[421744279,1778091042000,-151.0,0.00015,2]
[421744283,1778091042000,-151.0,0.00015,2]
[421744288,1778091042000,-151.0,0.00015,2]
[421744287,1778091042000,-4168.64472082,0.00015,3]
[421744278,1778091042000,-151.0,0.00015,2]
[421744281,1778091042000,-151.0,0.00015,2]
[421744282,1778091042000,-151.0,0.00015,2]
[421744284,1778091042000,-151.0,0.00015,2]
[421744285,1778091042000,-151.0,0.00015,2]
[421744286,1778091042000,-156.53223239,0.00015,2]
[421744289,1778091042000,-1870.68528841,0.00015,2]
[421744290,1778091042000,-500.0,0.00015,2]
[421744297,1778091042000,-7949.73,0.00015068,2]
[421744296,1778091042000,-722.23,0.00015068,2]
[421744298,1778091042000,-1674.7,0.00015068,2]
[421744325,1778091042000,-4052.691944,0.00015438,7]
[421744316,1778091042000,-500.0,0.00015342,2]
[421744321,1778091042000,-1411.0,0.00015425,2]
[421744352,1778091042000,-266.70864633,0.000158,2]
[421744359,1778091042000,-644.73923864,0.00015892,2]
[421744361,1778091042000,-10093.61614664,0.000159,2]
[421744360,1778091042000,-4156.4,0.000159,2]
[421744369,1778091042000,-550.0,0.00015945,2]
[421744362,1778091042000,-266.70864633,0.000159,2]
[421744363,1778091042000,-6950.55020763,0.000159,2]
[421744368,1778091042000,-550.0,0.00015945,2]
[421744370,1778091042000,-550.0,0.00015945,2]
[421744364,1778091042000,-550.0,0.00015945,2]
[421744366,1778091042000,-550.0,0.00015945,2]
[421744367,1778091042000,-550.0,0.00015945,2]
[421744372,1778091042000,-638.0,0.00015945,2]
[421744380,1778091042000,-450.0,0.0001598,2]
[421744381,1778091042000,-450.0,0.0001598,2]
[421744382,1778091042000,-450.0,0.0001598,2]
[421744383,1778091042000,-450.0,0.0001598,2]
[421744376,1778091042000,-450.0,0.0001598,2]
[421744371,1778091042000,-550.0,0.00015945,2]
[421744374,1778091042000,-1164.88003402,0.00015948,6]
[421744384,1778091042000,-457.0,0.0001598,2]
[421744373,1778091042000,-572.11870725,0.00015947,21]
[421744377,1778091042000,-450.0,0.0001598,2]
[421744375,1778091042000,-450.0,0.0001598,2]
[421744379,1778091042000,-450.0,0.0001598,2]
[421744385,1778091042000,-262.83374164,0.00015998,60]
[421744324,1778091042000,-5677.917316,0.00015438,2]
[421744353,1778091042000,-33999.999999,0.000158,2]
[421744347,1778091042000,-1870.68528841,0.00015737,2]
[421744365,1778091042000,-550.0,0.00015945,2]
[421744351,1778091042000,-4628.66967593,0.000158,2]
[421744327,1778091042000,-10108.28736609,0.00015471,3]
[421744349,1778091042000,-856.90396905,0.000158,2]
[421744329,1778091042000,-4628.66967593,0.000155,2]
[421744328,1778091042000,-10093.61614664,0.000155,2]
[421744331,1778091042000,-2303.44047904,0.00015581,2]
[421744336,1778091042000,-10093.61614664,0.000156,2]
[421744339,1778091042000,-722.23,0.00015616,2]
[421744338,1778091042000,-747.71147396,0.00015612,2]
[421744337,1778091042000,-266.70864633,0.000156,2]
[421744332,1778091042000,-273.8,0.00015599,2]
[421744333,1778091042000,-191.81041165,0.000156,2]
[421744334,1778091042000,-212.42,0.000156,2]
[421744335,1778091042000,-212.42,0.000156,2]
[421744341,1778091042000,-1674.7,0.00015616,2]
[421744330,1778091042000,-1000.0,0.000155,2]
[421744342,1778091042000,-500.0,0.00015616,2]
[421744340,1778091042000,-7949.73,0.00015616,2]
[421744354,1778091042000,-1356.89943482,0.00015876,30]
[421744350,1778091042000,-10093.61614664,0.000158,2]
[421744348,1778091042000,-160.0,0.00015747,5]
[421744358,1778091042000,-500.0,0.0001589,2]
[421744356,1778091042000,-7949.73,0.0001589,2]
[421744355,1778091042000,-722.23,0.0001589,2]
[421744346,1778091042000,-747.71147396,0.00015736,2]
[421744345,1778091042000,-621.78829552,0.00015725,2]
[421744344,1778091042000,-514.84070869,0.00015725,2]
[421744343,1778091042000,-4628.66967593,0.000157,2]
[421744357,1778091042000,-1674.7,0.0001589,2]
[421744405,1778091043000,-1507.76,0.00016,2]
[421744411,1778091043000,-15000.0,0.00016,14]
[421744401,1778091043000,-1303.19,0.00016,2]
[421744417,1778091043000,-1154.64894299,0.00016,2]
[421744403,1778091043000,-407.87,0.00016,2]
[421744412,1778091043000,-4628.66967593,0.00016,2]
[421744413,1778091043000,-2655.06167073,0.00016,2]
[421744415,1778091043000,-161.57016804,0.00016,3]
[421744418,1778091043000,-1000.0,0.00016,2]
[421744409,1778091043000,-2244.43,0.00016,2]
[421744410,1778091043000,-1507.76,0.00016,2]
[421744407,1778091043000,-200.0,0.00016,7]
[421744392,1778091043000,-50000.0,0.00016,2]
[421744399,1778091043000,-1303.195,0.00016,2]
[421744394,1778091043000,-500.0,0.00016,5]
[421744391,1778091043000,-218.60807753,0.00016,2]
[421744388,1778091043000,-200.0,0.00015999,2]
[421744395,1778091043000,-82810.06177578,0.00016,7]
[421744397,1778091043000,-28427.01479891,0.00016,2]
[421744387,1778091043000,-160.86256713,0.00015999,2]
[421744390,1778091043000,-151.0,0.00015999,2]
[421744393,1778091043000,-500.0,0.00016,2]
[421744389,1778091043000,-120450.98466725,0.00015999,2]
[421744386,1778091043000,-200.0,0.00015998,2]
[421744419,1778091043000,-3000.0,0.0001601,2]
[421744408,1778091043000,-2244.44,0.00016,2]
[421744416,1778091043000,-3000.0,0.00016,2]
[421744448,1778091043000,-210.51759279,0.00016095,2]
[421744425,1778091043000,-900.0,0.00016036,2]
[421744450,1778091043000,-1050.0,0.00016095,2]
[421744449,1778091043000,-1050.0,0.00016095,2]
[421744451,1778091043000,-664.34152772,0.00016095,2]
[421744445,1778091043000,-3000.0,0.0001609,2]
[421744447,1778091043000,-839.48240721,0.00016095,2]
[421744446,1778091043000,-1050.0,0.00016095,2]
[421744444,1778091043000,-644.73923864,0.00016086,2]
[421744443,1778091043000,-3000.0,0.0001608,2]
[421744422,1778091043000,-3000.0,0.0001603,2]
[421744440,1778091043000,-5000.0,0.0001606,2]
[421744436,1778091043000,-3000.0,0.0001604,2]
[421744439,1778091043000,-644.73923864,0.00016058,2]
[421744438,1778091043000,-3000.0,0.0001605,2]
[421744430,1778091043000,-900.0,0.00016036,2]
[421744441,1778091043000,-3000.0,0.0001606,2]
[421744423,1778091043000,-900.0,0.00016036,2]
[421744421,1778091043000,-3000.0,0.0001602,2]
[421744433,1778091043000,-651.0,0.00016036,2]
[421744420,1778091043000,-183.31530936,0.0001602,21]
[421744427,1778091043000,-900.0,0.00016036,2]
[421744426,1778091043000,-900.0,0.00016036,2]
[421744437,1778091043000,-644.73923864,0.00016041,2]
[421744428,1778091043000,-900.0,0.00016036,2]
[421744429,1778091043000,-900.0,0.00016036,2]
[421744442,1778091043000,-3000.0,0.0001607,2]
[421744431,1778091043000,-900.0,0.00016036,2]
[421744424,1778091043000,-900.0,0.00016036,2]
[421744456,1778091044000,-151.60035747,0.00016095,2]
[421744455,1778091044000,-385.65847228,0.00016095,2]
[421744454,1778091044000,-389.81051881,0.000149,2]
[421744452,1778091044000,-1319.12498291,0.00012586,7]
[421744453,1778091044000,-1003.25269823,0.000147,2]
[421744460,1778091046000,-898.39964253,0.00016095,2]
[421744458,1778091046000,-389.81051881,0.000149,2]
[421744462,1778091046000,-1050.0,0.00016095,2]
[421744459,1778091046000,-668.83513215,0.00015773,2]
[421744457,1778091046000,-1319.12498291,0.00012732,7]
[421744463,1778091046000,-1050.0,0.00016095,2]
[421744465,1778091046000,-3208.89159481,0.000161,2]
[421744464,1778091046000,-701.0,0.00016095,2]
[421744466,1778091046000,-1224.57652849,0.000161,2]
[421744461,1778091046000,-1050.0,0.00016095,2]
[421744642,1778092232000,-10452.55639402,0.00013671,2]
[421744580,1778092232000,-5000.0,0.00010224,2]
[421744582,1778092232000,-167.0,0.00010959,3]
[421744581,1778092232000,-235.84595742,0.00010504,2]
[421744586,1778092232000,-2918.80402514,0.00011365,2]
[421744584,1778092232000,-300.0,0.00011364,2]
[421744599,1778092232000,-161.57016804,0.00011624,2]
[421744605,1778092232000,-527.1592468,0.0001187,2]
[421744602,1778092232000,-160.0,0.00011624,2]
[421744597,1778092232000,-160.0,0.00011624,2]
[421744595,1778092232000,-7081.19597486,0.00011365,2]
[421744608,1778092232000,-500.0,0.00012326,2]
[421744609,1778092232000,-500.0,0.00012326,2]
[421744611,1778092232000,-420.0,0.00012483,2]
[421744619,1778092232000,-200.89984972,0.000126,2]
[421744622,1778092232000,-1656.2,0.00012874,2]
[421744626,1778092232000,-1319.12498291,0.00012878,7]
[421744624,1778092232000,-500.0,0.00012874,2]
[421744615,1778092232000,-1656.2,0.000126,2]
[421744617,1778092232000,-500.0,0.000126,2]
[421744613,1778092232000,-278.29822975,0.00012504,2]
[421744632,1778092232000,-1656.2,0.00013148,2]
[421744629,1778092232000,-185.0,0.00012949,2]
[421744630,1778092232000,-442.0,0.00012949,2]
[421744634,1778092232000,-500.0,0.00013148,2]
[421744636,1778092232000,-1656.2,0.00013422,2]
[421744640,1778092232000,-1445.1951539,0.00013571,2]
[421744638,1778092232000,-500.0,0.00013422,2]
[421744620,1778092232000,-152.0,0.00012732,7]
[421744828,1778092238000,-386.6908884,0.00013671,2]
[421744829,1778092238000,-780.0,0.00013671,2]
[421744830,1778092238000,-1285.10008273,0.00013671,2]
[421744896,1778092241000,-2155.38,0.00013534,2]
[421744888,1778092241000,-2631.92095654,0.00013534,2]
[421745238,1778092244000,-1207.11479502,0.00013671,2]
[421745236,1778092244000,-212.69904346,0.00013534,2]
[421745583,1778092247000,-512.48575593,0.00013699,2]
[421745581,1778092247000,-1000.0,0.00013699,2]
[421745579,1778092247000,-2059.632957,0.00013699,2]
[421745577,1778092247000,-180.13329864,0.00013699,2]
[421745576,1778092247000,-500.0,0.00013696,2]
[421745570,1778092247000,-14631.50784283,0.00013671,2]
[421745563,1778092247000,-1257.029997,0.00013671,2]
[421745574,1778092247000,-1656.2,0.00013696,2]
[421745572,1778092247000,-8003.26229642,0.00013671,7]
[421745907,1778092658000,165.624824,5.952e-05,2]
[421745908,1778092659000,165.624824,6.324e-05,2]
[421745910,1778092659000,165.624824,7.069e-05,2]
[421745909,1778092659000,165.624824,6.697e-05,2]
[421745912,1778092660000,165.624824,7.813e-05,2]
[421745911,1778092660000,165.624824,7.441e-05,2]
[421745913,1778092796000,156.04317397,8.16e-05,2]
[421745914,1778092832000,5000.0,8.16e-05,2]
[421745915,1778092854000,5000.0,8.16e-05,2]
[421745916,1778092877000,5000.0,8.16e-05,2]
[421745917,1778092900000,5000.0,8.16e-05,2]
[421745918,1778092922000,5000.0,8.16e-05,2]
[421745919,1778092944000,1457.60496808,8.16e-05,2]
[421745921,1778093223000,5000.0,8.16e-05,2]
[421745922,1778093252000,1019.69444519,8.16e-05,2]
[421745923,1778093267000,5000.0,8.16e-05,2]
[421745924,1778093290000,5000.0,8.16e-05,2]
[421745925,1778093312000,2357.17967238,8.16e-05,2]
[421745926,1778093413000,831.76838016,8.16e-05,2]
[421745992,1778093431000,-165.624824,0.00010789,2]
[421745971,1778093431000,-165.624824,8.185e-05,2]
[421745975,1778093431000,-165.624824,8.557e-05,2]
[421745977,1778093431000,-165.624824,8.929e-05,2]
[421745980,1778093431000,-3.70514246,9.673e-05,2]
[421745978,1778093431000,-165.624824,9.301e-05,2]
[421745983,1778093431000,-161.91968154,9.673e-05,2]
[421745974,1778093431000,-247.44232532,8.231e-05,2]
[421745996,1778093431000,-300.0,0.00011143,2]
[421745997,1778093431000,-1537.60971659,0.00011144,2]
[421745990,1778093431000,-165.624824,0.00010417,2]
[421745987,1778093431000,-112.86884771,0.00010231,2]
[421745985,1778093431000,-165.624824,0.00010045,2]
[421745994,1778093431000,-157.0,0.00010959,3]
[421745989,1778093431000,-179.11309617,0.00010231,2]
[421746058,1778093432000,-2209.0,0.00013114,2]
[421746062,1778093432000,-720.0,0.00013173,2]
[421746070,1778093432000,-1932.87421275,0.00013561,2]
[421746052,1778093432000,-1311.16,0.00013113,2]
[421746064,1778093432000,-1311.16,0.00013387,2]
[421746049,1778093432000,-161.57016804,0.00012783,2]
[421746050,1778093432000,-160.0,0.00012783,2]
[421746068,1778093432000,-587.0,0.00013452,2]
[421746066,1778093432000,-500.0,0.00013387,2]
[421746060,1778093432000,-647.0,0.00013114,2]
[421746079,1778093432000,-1000.0,0.00013699,2]
[421746054,1778093432000,-500.0,0.00013113,2]
[421746074,1778093432000,-500.0,0.00013661,2]
[421746072,1778093432000,-1311.16,0.00013661,2]
[421746076,1778093432000,-180.1278908,0.00013699,2]
[421746077,1778093432000,-1029.816479,0.00013699,2]
[421746047,1778093432000,-160.0,0.00012396,2]
[421746082,1778093432000,-1000.0,0.00013699,2]
[421746086,1778093432000,-383.40707572,0.00013699,2]
[421746084,1778093432000,-1799.08822448,0.00013699,2]
[421746088,1778093432000,-592.86449187,0.000137,2]
[421746056,1778093432000,-848.152,0.00013114,2]
[421746037,1778093432000,-160.0,0.00011626,2]
[421746029,1778093432000,-300.0,0.00011366,2]
[421746031,1778093432000,-300.0,0.00011366,2]
[421746001,1778093432000,-4469.71210059,0.00011144,2]
[421746003,1778093432000,-165.624824,0.00011161,2]
[421746008,1778093432000,-300.0,0.00011366,2]
[421746090,1778093432000,-473.72796578,0.000137,2]
[421746007,1778093432000,-300.0,0.00011366,2]
[421746010,1778093432000,-300.0,0.00011366,2]
[421746005,1778093432000,-300.0,0.00011366,2]
[421746014,1778093432000,-300.0,0.00011366,2]
[421746012,1778093432000,-300.0,0.00011366,2]
[421746016,1778093432000,-300.0,0.00011366,2]
[421746033,1778093432000,-165.624824,0.00011533,2]
[421746022,1778093432000,-300.0,0.00011366,2]
[421746020,1778093432000,-300.0,0.00011366,2]
[421746024,1778093432000,-300.0,0.00011366,2]
[421746025,1778093432000,-300.0,0.00011366,2]
[421746039,1778093432000,-165.624824,0.00011905,2]
[421746027,1778093432000,-300.0,0.00011366,2]
[421745999,1778093432000,-3992.67818282,0.00011144,2]
[421746043,1778093432000,-336.52156244,0.00012231,2]
[421746035,1778093432000,-160.0,0.00011626,2]
[421746041,1778093432000,-600.0,0.00011976,2]
[421746045,1778093432000,-420.0,0.00012243,2]
[421746018,1778093432000,-300.0,0.00011366,2]
[421746097,1778093432000,-446.78372052,0.00013869,2]
[421746164,1778093432000,-2025.10272591,0.00013899,2]
[421746095,1778093432000,-446.78372054,0.000138,2]
[421746133,1778093432000,-1928.66926277,0.00013899,2]
[421746138,1778093432000,-1928.66926277,0.00013899,2]
[421746152,1778093432000,-1928.66926277,0.00013899,2]
[421746154,1778093432000,-1928.66926277,0.00013899,2]
[421746158,1778093432000,-1928.66926277,0.00013899,2]
[421746156,1778093432000,-1928.66926277,0.00013899,2]
[421746166,1778093432000,-1611.11938383,0.00013899,2]
[421746162,1778093432000,-2025.10272591,0.00013899,2]
[421746169,1778093432000,-413.98334208,0.00013899,2]
[421746171,1778093432000,-2025.10272591,0.00013899,2]
[421746148,1778093432000,-1928.66926277,0.00013899,2]
[421746160,1778093432000,-2025.10272591,0.00013899,2]
[421746175,1778093432000,-2025.10272591,0.00013899,2]
[421746178,1778093432000,-2025.10272591,0.00013899,2]
[421746176,1778093432000,-2025.10272591,0.00013899,2]
[421746180,1778093432000,-2025.10272591,0.00013899,2]
[421746182,1778093432000,-2349.11916201,0.00013899,2]
[421746184,1778093432000,-28107.42166655,0.000139,2]
[421746191,1778093432000,-6329.51878425,0.000139,2]
[421746194,1778093432000,-340018.19238358,0.000139,2]
[421746189,1778093432000,-2994.07694886,0.000139,2]
[421746093,1778093432000,-6310.40754235,0.000137,2]
[421746173,1778093432000,-2025.10272591,0.00013899,2]
[421746150,1778093432000,-1928.66926277,0.00013899,2]
[421746186,1778093432000,-4866.84819384,0.000139,2]
[421746137,1778093432000,-1928.66926277,0.00013899,2]
[421746099,1778093432000,-500.0,0.00013899,2]
[421746135,1778093432000,-1928.66926277,0.00013899,2]
[421746101,1778093432000,-163.7375505,0.00013899,2]
[421746103,1778093432000,-500.0,0.00013899,2]
[421746105,1778093432000,-500.0,0.00013899,2]
[421746109,1778093432000,-500.0,0.00013899,2]
[421746107,1778093432000,-500.0,0.00013899,2]
[421746119,1778093432000,-500.0,0.00013899,2]
[421746117,1778093432000,-186.49980488,0.00013899,2]
[421746121,1778093432000,-604.86244765,0.00013899,2]
[421746111,1778093432000,-500.0,0.00013899,2]
[421746115,1778093432000,-500.0,0.00013899,2]
[421746123,1778093432000,-500.0,0.00013899,2]
[421746126,1778093432000,-429.0707739,0.00013899,2]
[421746124,1778093432000,-500.0,0.00013899,2]
[421746132,1778093432000,-1928.66926277,0.00013899,2]
[421746144,1778093432000,-1928.66926277,0.00013899,2]
[421746128,1778093432000,-500.0,0.00013899,2]
[421746130,1778093432000,-278.18109774,0.00013899,2]
[421746140,1778093432000,-1928.66926277,0.00013899,2]
[421746142,1778093432000,-1928.66926277,0.00013899,2]
[421746146,1778093432000,-1928.66926277,0.00013899,2]
[421746113,1778093432000,-362.32250019,0.00013899,2]
[421746452,1778093438000,-22531.75,0.000139,2]
[421746476,1778093438000,-1322.98034576,0.000139,2]
[421746474,1778093438000,-7183.69524253,0.000139,2]
[421746487,1778093438000,-21548.79916861,0.00014,2]
[421746481,1778093438000,-500.0,0.00013935,2]
[421746483,1778093438000,-446.78372052,0.00013938,2]
[421746485,1778093438000,-200.70124432,0.00014,2]
[421746478,1778093438000,-1311.16,0.00013935,2]
[421746937,1778093443000,-644.0,0.00014,2]
[421746953,1778093446000,-2374.232,0.00014,2]
[421746952,1778093446000,-1268.77719574,0.00014,2]
[421746954,1778093446000,-28465.43385865,0.00014,2]
[421746957,1778093446000,-3441.14473812,0.00014175,2]
[421746955,1778093446000,-446.78372052,0.00014006,2]
[421746958,1778093446000,-1311.16,0.00014209,2]
[421746959,1778093446000,-473.11363144,0.00014209,2]
[421746956,1778093446000,-446.78372052,0.00014075,2]
[421746973,1778094332000,793.32332806,7.6e-05,2]
[421747011,1778094631000,-5000.0,9.055e-05,2]
[421747048,1778094632000,-180.0,0.00010366,2]
[421747046,1778094632000,-420.0,0.00010366,2]
[421747044,1778094632000,-1680.0,0.00010365,2]
[421747045,1778094632000,-300.0,0.00010366,2]
[421747038,1778094632000,-1721.74895127,0.0001,2]
[421747041,1778094632000,-341.50231334,0.0001,2]
[421747040,1778094632000,-2381.85143733,0.0001,2]
[421747042,1778094632000,-10000.0,0.00010142,2]
[421747036,1778094632000,-300.0,9.612e-05,2]
[421747043,1778094632000,-600.0,0.00010199,2]
[421747052,1778094632000,-162.0,0.00010959,3]
[421747050,1778094632000,-200.0,0.00010714,2]
[421747049,1778094632000,-420.0,0.00010366,2]
[421747054,1778094632000,-1049.0,0.0001112,2]
[421747056,1778094632000,-2351.0,0.00011402,2]
[421747055,1778094632000,-720.0,0.00011219,2]
[421747058,1778094632000,-419.0,0.00011403,2]
[421747051,1778094632000,-200.0,0.00010714,7]
[421747057,1778094632000,-715.5503244,0.00011402,2]
[421747059,1778094632000,-587.0,0.00011403,2]
[421747060,1778094632000,-253.0,0.00011403,2]
[421747062,1778094632000,-273.2,0.00012329,2]
[421747047,1778094632000,-420.0,0.00010366,2]
[421747053,1778094632000,-289.4522979,0.00011101,2]
[421747039,1778094632000,-496.43987476,0.0001,2]
[421747014,1778094632000,-1200.0,9.423e-05,2]
[421747032,1778094632000,-300.0,9.612e-05,2]
[421747012,1778094632000,-245.29855754,9.101e-05,2]
[421747015,1778094632000,-300.0,9.424e-05,2]
[421747022,1778094632000,-4555.246777,9.425e-05,2]
[421747013,1778094632000,-425.71203433,9.146e-05,2]
[421747063,1778094632000,-227.66,0.00012329,2]
[421747016,1778094632000,-300.0,9.424e-05,2]
[421747017,1778094632000,-300.0,9.424e-05,2]
[421747018,1778094632000,-300.0,9.424e-05,2]
[421747021,1778094632000,-964.89145865,9.425e-05,2]
[421747019,1778094632000,-300.0,9.424e-05,2]
[421747020,1778094632000,-3498.63470978,9.425e-05,2]
[421747024,1778094632000,-300.0,9.612e-05,2]
[421747023,1778094632000,-300.0,9.612e-05,2]
[421747026,1778094632000,-300.0,9.612e-05,2]
[421747025,1778094632000,-300.0,9.612e-05,2]
[421747029,1778094632000,-300.0,9.612e-05,2]
[421747027,1778094632000,-300.0,9.612e-05,2]
[421747035,1778094632000,-300.0,9.612e-05,2]
[421747034,1778094632000,-300.0,9.612e-05,2]
[421747028,1778094632000,-300.0,9.612e-05,2]
[421747031,1778094632000,-300.0,9.612e-05,2]
[421747033,1778094632000,-300.0,9.612e-05,2]
[421747030,1778094632000,-300.0,9.612e-05,2]
[421747037,1778094632000,-300.0,9.612e-05,2]
[421747065,1778094632000,-158.1,0.00012329,2]
[421747069,1778094632000,-189.23,0.0001248,2]
[421747061,1778094632000,-327.83,0.00012329,2]
[421747091,1778094632000,-151.0,0.00012696,2]
[421747087,1778094632000,-151.0,0.00012696,2]
[421747092,1778094632000,-151.0,0.00012696,2]
[421747090,1778094632000,-151.0,0.00012696,2]
[421747095,1778094632000,-1038.0,0.00012703,2]
[421747099,1778094632000,-1691.26493613,0.000129,2]
[421747101,1778094632000,-1691.26493612,0.000129,2]
[421747098,1778094632000,-500.0,0.00012877,2]
[421747100,1778094632000,-1691.26493612,0.000129,2]
[421747103,1778094632000,-500.0,0.00012977,2]
[421747102,1778094632000,-1038.0,0.00012977,2]
[421747110,1778094632000,-172.6,0.00013465,2]
[421747109,1778094632000,-169.58,0.00013342,2]
[421747105,1778094632000,-645.0,0.00013165,2]
[421747106,1778094632000,-1038.0,0.00013251,2]
[421747104,1778094632000,-333.60603826,0.00013101,2]
[421747108,1778094632000,-168.88,0.00013282,2]
[421747107,1778094632000,-500.0,0.00013251,2]
[421747113,1778094632000,-6255.49518693,0.00013532,2]
[421747115,1778094632000,-200.0,0.00013599,2]
[421747114,1778094632000,-1000.0,0.00013575,2]
[421747116,1778094632000,-37205.34853949,0.000136,2]
[421747112,1778094632000,-500.0,0.00013525,2]
[421747089,1778094632000,-151.0,0.00012696,2]
[421747094,1778094632000,-499.81567735,0.00012703,2]